bitfinex-derivatives/quotes_SOLF0:USTF0_20251222
["timestamp","ask_amount","ask_price","bid_price","bid_amount"]
[1766423171291,9.72,126.78,126.69,16.9366]
[1766423171576,0.05153365,126.75,126.66,4.04729214]
[1766423171772,9.72,126.75,126.66,4.04729214]
[1766423172171,9.72,126.75,126.66,11.15539214]
[1766423172379,9.72,126.75,126.66,13.87729214]
[1766423172571,0.04974996,126.72,126.66,124.45119214]
[1766423172772,0.04974996,126.72,126.69,7.1065]
[1766423173073,9.72,126.78,126.68,9.83]
[1766423173272,9.72,126.76,126.68,7.107]
[1766423173781,10.38550909,126.77,126.66,114.61949214]
[1766423173782,9.72,126.74,126.66,4.04729214]
[1766423174080,7.1035,126.75,126.69,0.06033969]
[1766423174081,0.0518924,126.71,126.69,0.06033969]
[1766423174577,0.0518924,126.71,126.66,3.46070341]
[1766423174578,9.7718924,126.71,126.66,3.46070341]
[1766423174777,9.7718924,126.71,126.66,0.00070341]
[1766423175182,7.1064,126.7,126.6,7.1115]
[1766423175388,7.1064,126.7,126.58,205.15276498]
[1766423175389,6.45,126.68,126.58,1.37386498]
[1766423175592,0.06018955,126.64,126.57,9.83]
[1766423175887,6.44,126.71,126.61,120.4432]
[1766423176067,6.44,126.71,126.62,9.83]
[1766423176870,0.05066419,126.68,126.62,9.83]
[1766423177077,0.05066419,126.68,126.65,0.05048676]
[1766423177272,6.44,126.74,126.66,9.83]
[1766423178285,0.05016935,126.71,126.69,0.05635108]
[1766423179784,93.14,126.76,126.69,7.16275108]
[1766423180585,93.14,126.76,126.7,7.1059]
[1766423180786,0.05263662,126.74,126.72,0.05949886]
[1766423183974,0.05263662,126.74,126.68,9.83]
[1766423184988,0.05263662,126.74,126.7,0.05157932]
[1766423185185,0.00263662,126.74,126.7,9.88157932]
[1766423186082,0.00263662,126.74,126.71,7.1055]
[1766423189485,0.00263662,126.74,126.72,16.9348]
[1766423189678,99.57,126.8,126.72,16.9348]
[1766423189883,99.57,126.8,126.72,9.83]
[1766423190291,99.57,126.8,126.73,7.1044]
[1766423190492,6.43,126.79,126.72,9.83]
[1766423190693,0.05040521,126.77,126.74,0.05349519]
[1766423193290,0.05040521,126.77,126.74,0.00349519]
[1766423196796,0.00040521,126.77,126.74,0.00349519]
[1766423197510,0.00040521,126.77,126.75,7.1032]
[1766423197692,99.5,126.82,126.75,7.1032]
[1766423198196,6.34,126.82,126.75,7.1032]
[1766423198404,6.34,126.82,126.73,16.664]
[1766423198598,0.05457363,126.79,126.76,0.05507035]
[1766423198991,0.05457363,126.79,126.73,9.56]
[1766423199193,6.3,126.78,126.67,120.3342]
[1766423199394,6.3,126.78,126.68,9.77]
[1766423199889,6.3,126.76,126.68,9.77]
[1766423200092,0.05684011,126.73,126.71,0.05806413]
[1766423202713,6.28684011,126.73,126.65,9.77]
[1766423202892,6.23,126.73,126.62,120.3738]
[1766423203204,6.23,126.73,126.63,9.77]
[1766423203602,0.0530707,126.69,126.67,0.0428494]
[1766423203802,0.0584048,126.69,126.67,0.0428494]
[1766423206006,0.0584048,126.69,126.67,0.0028494]
[1766423206408,6.2184048,126.69,126.67,0.0028494]
[1766423209119,0.0584048,126.69,126.67,0.0028494]
[1766423209300,6.2084048,126.69,126.67,0.0028494]
[1766423210318,6.14,126.68,126.6,93.2]
[1766423210606,6.14,126.68,126.59,16.882]
[1766423211199,6.14,126.68,126.6,7.1117]
[1766423211404,0.05386776,126.65,126.6,7.1117]
[1766423212216,0.05386776,126.65,126.6,16.8817]
[1766423213516,0.05386776,126.65,126.61,9.77]
[1766423213918,0.05386776,126.65,126.58,9.77]
[1766423215225,0.05386776,126.65,126.6,9.77]
[1766423216109,0.05386776,126.65,126.6,16.8817]
[1766423216820,0.05386776,126.65,126.61,7.1111]
[1766423219716,6.15,126.71,126.63,9.77]
[1766423220724,6.15,126.71,126.63,16.8798]
[1766423220926,0.05552498,126.68,126.66,0.0517682]
[1766423222416,0.05552498,126.68,126.66,0.0017682]
[1766423224226,93.22,126.72,126.66,0.0017682]
[1766423225326,0.05709155,126.7,126.66,0.0017682]
[1766423229232,93.22,126.72,126.66,9.3817682]
[1766423230330,0.00065962,126.7,126.66,9.3817682]
[1766423233133,2.39318135,126.75,126.68,7.1072]
[1766423233339,99.41,126.76,126.69,9.38]
[1766423233842,93.22,126.76,126.7,9.38]
[1766423234043,13.282,126.78,126.7,9.38]
[1766423234241,0.05015149,126.75,126.73,0.05308522]
[1766423235435,6.17015149,126.75,126.67,9.38]
[1766423235633,6.12,126.73,126.63,9.38]
[1766423235845,6.12,126.73,126.65,9.38]
[1766423236642,0.05250414,126.7,126.68,0.05071689]
[1766423236845,0.00250414,126.7,126.68,0.05071689]
[1766423237445,0.00250414,126.7,126.68,0.00071689]
[1766423243056,0.00250414,126.7,126.63,9.38]
[1766423243754,0.00250414,126.7,126.63,16.4901]
[1766423243957,6.08250414,126.7,126.65,0.05392942]
[1766423244751,0.00250414,126.7,126.65,0.05392942]
[1766423245357,0.00250414,126.7,126.65,7.16282942]
[1766423245552,0.00250414,126.7,126.65,0.05392942]
[1766423246449,0.00250414,126.7,126.65,9.43392942]
[1766423246657,0.00250414,126.7,126.65,16.54292942]
[1766423247349,0.00250414,126.7,126.66,16.4882]
[1766423248250,0.00250414,126.7,126.67,9.38]
[1766423249861,0.00250414,126.7,126.67,16.4877]
[1766423250063,0.00250414,126.7,126.68,9.56]
[1766423250360,0.00250414,126.7,126.68,0.05010185]
[1766423251760,0.00250414,126.7,126.68,9.61010185]
[1766423252061,93.2,126.74,126.69,9.56]
[1766423253258,0.05883148,126.73,126.69,9.56]
[1766423253558,0.05883148,126.73,126.69,16.6664]
[1766423254356,0.05883148,126.73,126.69,9.56]
[1766423254950,0.05883148,126.73,126.69,16.6666]
[1766423256059,0.05883148,126.73,126.68,0.05010185]
[1766423256361,2.39227544,126.71,126.68,0.05010185]
[1766423257252,5.98,126.7,126.62,103.45]
[1766423257463,2.39227544,126.69,126.62,103.45]
[1766423257659,2.39227544,126.69,126.63,10.23]
[1766423258353,0.05194746,126.67,126.65,0.0503905]
[1766423258552,0.00194746,126.67,126.65,0.0503905]
[1766423263375,95.59227544,126.71,126.65,0.0503905]
[1766423263872,101.60227544,126.71,126.65,0.0503905]
[1766423264268,101.60227544,126.71,126.65,10.2803905]
[1766423264469,0.05572842,126.69,126.65,0.0503905]
[1766423265877,8.44800386,126.69,126.65,0.0003905]
[1766423267265,5.95,126.68,126.65,0.0003905]
[1766423268685,2.44800386,126.69,126.65,0.0003905]
[1766423270166,0.05572842,126.69,126.65,0.0003905]
[1766423274483,5.98572842,126.69,126.65,0.0003905]
[1766423278383,5.91,126.66,126.58,10.23]
[1766423279288,0.05874364,126.63,126.61,0.05322029]
[1766423279979,5.91,126.66,126.61,0.05322029]
[1766423280788,0.05859035,126.65,126.61,0.05322029]
[1766423281193,93.22,126.67,126.61,10.28322029]
[1766423282296,0.06025722,126.65,126.61,0.05322029]
[1766423285186,0.06025722,126.65,126.61,10.28322029]
[1766423286392,0.06025722,126.65,126.61,17.39442029]
[1766423287095,6.07,126.72,126.63,9.27]
[1766423287297,6.07,126.7,126.63,9.27]
[1766423288203,0.05326186,126.68,126.65,0.05502738]
[1766423289894,0.00326186,126.68,126.65,16.43392738]
[1766423292012,5.99,126.72,126.66,9.27]
[1766423292310,3.74139443,126.73,126.66,9.27]
[1766423293010,3.74139443,126.73,126.68,0.0580362]
[1766423293011,0.05285558,126.71,126.68,0.0580362]
[1766423294113,3.74139443,126.76,126.69,9.27]
[1766423294305,5.99,126.75,126.66,9.27]
[1766423295208,0.05873221,126.72,126.69,0.05314541]
[1766423298211,5.89873221,126.72,126.69,0.00314541]
[1766423300019,0.05873221,126.72,126.69,0.00314541]
[1766423301114,5.83,126.75,126.69,16.37974541]
[1766423301515,5.83,126.75,126.69,9.27314541]
[1766423302119,0.05869387,126.73,126.69,9.27314541]
[1766423302819,0.05869387,126.73,126.69,0.00314541]
[1766423303522,0.05869387,126.73,126.69,7.10974541]
[1766423307113,0.05869387,126.73,126.69,16.37974541]
[1766423307423,0.05869387,126.73,126.7,7.1061]
[1766423307814,3.74139443,126.76,126.7,16.3761]
[1766423308014,9.48139443,126.77,126.7,16.3761]
[1766423308414,16.58379443,126.77,126.7,16.3761]
[1766423308725,5.74,126.76,126.7,9.27]
[1766423308921,0.05212687,126.74,126.72,0.05937805]
[1766423309121,0.05212687,126.74,126.7,9.27]
[1766423310116,0.05212687,126.74,126.71,0.05350691]
[1766423314730,0.00212687,126.74,126.71,9.18350691]
[1766423315627,0.00212687,126.74,126.71,16.28890691]
[1766423317035,0.00212687,126.74,126.71,0.05350691]
[1766423317232,0.00212687,126.74,126.71,9.11350691]
[1766423317736,0.00212687,126.74,126.71,16.21900691]
[1766423320936,0.00212687,126.74,126.72,9.06]
[1766423322640,5.49,126.79,126.72,9.06]
[1766423323339,104.04219443,126.8,126.73,9.06]
[1766423323340,96.94139443,126.8,126.73,9.06]
[1766423323737,0.05809639,126.78,126.75,0.05787199]
[1766423324843,5.47809639,126.78,126.75,0.05787199]
[1766423325537,5.47809639,126.78,126.71,16.1656]
[1766423325538,5.42,126.77,126.71,16.1656]
[1766423325744,9.16139443,126.76,126.68,9.06]
[1766423326535,0.0507065,126.73,126.71,0.05338527]
[1766423328145,5.37,126.71,126.62,9.06]
[1766423328739,12.4757,126.71,126.64,9.06]
[1766423328947,0.04970378,126.69,126.66,0.05600669]
[1766423332351,12.465,126.73,126.66,16.22430669]
[1766423332352,2.39374523,126.72,126.66,16.22430669]
[1766423333456,2.39374523,126.72,126.67,16.1678]
[1766423333457,0.00114019,126.7,126.67,16.1678]
[1766423333654,0.00114019,126.7,126.67,9.06]
[1766423335552,0.00114019,126.7,126.67,16.1677]
[1766423336960,93.18,126.74,126.69,9.06]
[1766423337851,95.57374523,126.74,126.69,9.06]
[1766423338160,0.04994983,126.73,126.7,0.05742964]
[1766423339059,2.44369506,126.73,126.7,0.05742964]
[1766423341055,93.18,126.74,126.7,9.11742964]
[1766423341262,93.18,126.74,126.7,0.05742964]
[1766423341651,100.90374523,126.74,126.7,0.05742964]
[1766423342254,0.05112536,126.73,126.7,0.05742964]
[1766423343362,2.39374523,126.72,126.66,93.2]
[1766423343562,7.63374523,126.7,126.63,9.06]
[1766423344573,0.05558608,126.68,126.65,0.05820558]
[1766423345069,2.39374523,126.71,126.65,16.22710558]
[1766423345264,7.66374523,126.71,126.65,9.11820558]
[1766423345464,7.65374523,126.69,126.65,0.05820558]
[1766423345659,7.65374523,126.69,126.62,9.06]
[1766423346271,0.05614502,126.67,126.64,0.0605974]
[1766423347275,0.05614502,126.67,126.64,16.0000974]
[1766423347771,7.68374523,126.71,126.64,16.0000974]
[1766423348169,5.26,126.74,126.67,8.83]
[1766423348467,5.26,126.73,126.67,8.83]
[1766423348672,0.053244,126.71,126.69,0.057051]
[1766423348969,100.81374523,126.75,126.69,0.057051]
[1766423349672,2.39374523,126.74,126.69,0.057051]
[1766423349873,2.39374523,126.72,126.69,0.057051]
[1766423350168,2.44446792,126.72,126.69,0.057051]
[1766423352573,0.00072269,126.72,126.69,8.887051]
[1766423352973,0.00072269,126.72,126.69,15.993751]
[1766423353276,2.39374523,126.75,126.69,15.993751]
[1766423353277,2.39374523,126.75,126.7,8.83]
[1766423353869,2.39374523,126.75,126.7,15.9361]
[1766423354270,0.05380885,126.74,126.7,15.9361]
[1766423357983,0.05380885,126.74,126.69,0.057051]
[1766423358189,2.39374523,126.71,126.69,0.057051]
[1766423358383,2.44464963,126.71,126.66,8.83]
[1766423358591,0.0509044,126.71,126.66,8.83]
[1766423359591,0.0509044,126.71,126.67,0.05788612]
[1766423360992,2.39374523,126.7,126.64,15.9392]
[1766423361190,2.39374523,126.7,126.64,8.83]
[1766423361600,2.39374523,126.68,126.64,8.83]
[1766423361891,0.05104005,126.67,126.65,0.05671396]
[1766423362097,0.05104005,126.67,126.62,8.83]
[1766423362991,0.05104005,126.67,126.63,0.05814932]
[1766423363497,2.39374523,126.66,126.63,0.05814932]
[1766423366296,0.05104005,126.67,126.63,0.05814932]
[1766423366692,2.39374523,126.66,126.63,0.05814932]
[1766423369306,4.72104005,126.67,126.63,0.05814932]
[1766423369597,0.05104005,126.67,126.63,0.05814932]
[1766423370691,0.05104005,126.67,126.63,7.16804932]
[1766423371101,0.05104005,126.67,126.63,8.70814932]
[1766423372004,0.05104005,126.67,126.64,7.1094]
[1766423372202,0.05104005,126.67,126.63,8.70814932]
[1766423373403,0.05104005,126.67,126.63,0.05814932]
[1766423377103,0.05104005,126.67,126.63,7.16814932]
[1766423377607,6.73374523,126.72,126.64,8.73]
[1766423377791,4.31,126.71,126.62,8.73]
[1766423377996,6.70374523,126.7,126.62,8.73]
[1766423378603,0.05037212,126.67,126.65,0.05712662]
[1766423379105,0.00037212,126.67,126.65,0.05712662]
[1766423382210,0.00037212,126.67,126.65,7.16602662]
[1766423383303,0.00037212,126.67,126.66,8.73]
[1766423384405,0.00037212,126.67,126.66,15.8384]
[1766423384902,6.62374523,126.73,126.66,15.8384]
[1766423385807,6.62374523,126.73,126.67,7.1079]
[1766423386006,0.06027419,126.71,126.69,0.05729083]
[1766423386897,0.06027419,126.71,126.66,8.73]
[1766423387205,2.45401942,126.71,126.66,8.73]
[1766423388009,2.45401942,126.71,126.67,0.05516875]
[1766423389811,6.48401942,126.71,126.67,0.05516875]
[1766423391909,3.96,126.7,126.67,0.05516875]
[1766423392106,6.29374523,126.69,126.62,15.8401]
[1766423392407,6.29374523,126.67,126.6,8.73]
[1766423393008,0.05243872,126.65,126.62,0.0590204]
[1766423398711,0.00243872,126.65,126.62,8.7890204]
[1766423400915,3.78,126.7,126.64,7.1094]
[1766423401413,3.76,126.69,126.63,8.73]
[1766423401912,0.05138961,126.67,126.65,0.05109429]
[1766423404216,3.75138961,126.67,126.6,8.73]
[1766423404522,0.05138961,126.67,126.6,8.73]
[1766423405420,0.05138961,126.67,126.62,8.78551968]
[1766423405619,0.05648257,126.66,126.62,15.89601968]
[1766423405821,0.05648257,126.66,126.63,0.05504197]
[1766423406622,7.16488257,126.66,126.56,9.86416336]
[1766423406823,3.74298146,126.64,126.56,8.49]
[1766423407018,7.1084,126.66,126.57,8.49]
[1766423407019,3.74298146,126.66,126.57,8.49]
[1766423407212,3.74298146,126.66,126.56,110.6583]
[1766423407213,3.74298146,126.66,126.58,15.6028]
[1766423407615,0.05163709,126.63,126.61,0.05936295]
[1766423409231,0.05163709,126.63,126.56,7.1136]
[1766423409232,3.74298146,126.62,126.56,8.49]
[1766423409733,3.74298146,126.64,126.56,8.49]
[1766423410231,0.05380756,126.61,126.59,0.05950956]
[1766423411421,0.05380756,126.61,126.56,8.49]
[1766423411626,0.05380756,126.61,126.52,8.49]
[1766423411822,3.74298146,126.62,126.53,8.49]
[1766423412426,0.05740063,126.59,126.56,0.05281819]
[1766423413530,3.74298146,126.65,126.56,8.54281819]
[1766423413736,3.74298146,126.66,126.56,8.49]
[1766423413936,3.74298146,126.66,126.57,8.49]
[1766423414434,10.85158146,126.66,126.58,8.49]
[1766423414629,0.05266727,126.63,126.61,0.05342254]
[1766423415030,0.05266727,126.63,126.61,0.00342254]
[1766423415238,0.05266727,126.63,126.56,8.49]
[1766423415428,7.1094,126.65,126.56,8.49]
[1766423416229,0.0533764,126.62,126.59,0.05444953]
[1766423417726,0.0533764,126.62,126.59,0.00444953]
[1766423418838,0.0033764,126.62,126.59,8.49444953]
[1766423421136,3.74298146,126.67,126.59,8.49444953]
[1766423421337,3.74298146,126.67,126.59,8.49]
[1766423421842,3.74298146,126.65,126.56,70.23]
[1766423422042,0.05104952,126.62,126.59,0.05985081]
[1766423426250,7.16204952,126.62,126.59,0.05985081]
[1766423427536,7.1113,126.61,126.55,8.23]
[1766423428549,7.1113,126.61,126.57,0.05826712]
[1766423428550,0.05851852,126.59,126.57,0.05826712]
[1766423429043,7.1113,126.61,126.57,8.28826712]
[1766423430051,0.04967583,126.6,126.57,8.28826712]
[1766423430646,7.1106,126.63,126.57,8.28826712]
[1766423431649,0.06020645,126.61,126.57,8.28826712]
[1766423433252,0.06020645,126.61,126.57,0.05826712]
[1766423433450,0.06020645,126.61,126.57,8.28826712]
[1766423434042,0.06020645,126.61,126.57,0.05826712]
[1766423435156,0.06020645,126.61,126.57,8.28826712]
[1766423435851,114.33128146,126.65,126.57,0.05826712]
[1766423436051,3.74298146,126.63,126.56,8.36]
[1766423436353,114.33128146,126.65,126.56,8.36]
[1766423436654,3.74298146,126.63,126.56,8.36]
[1766423436855,0.05017311,126.62,126.59,0.0600337]
[1766423437055,0.05017311,126.62,126.56,8.36]
[1766423437558,7.16087311,126.62,126.56,8.36]
[1766423438157,7.16087311,126.62,126.58,0.05361966]
[1766423438746,7.1113,126.61,126.58,0.05361966]
[1766423439359,0.05017311,126.62,126.54,8.54]
[1766423439559,207.62778146,126.63,126.54,8.54]
[1766423440362,0.04969636,126.6,126.57,0.05982313]
[1766423446768,93.28,126.63,126.57,8.59982313]
[1766423446964,124.7614,126.7,126.57,8.59982313]
[1766423446965,10.85178146,126.66,126.57,8.59982313]
[1766423447159,93.28,126.65,126.58,15.6529]
[1766423447358,93.28,126.65,126.59,8.54]
[1766423447762,0.06060196,126.63,126.61,8.59701125]
[1766423447962,40.45636664,126.65,126.61,8.59701125]
[1766423448268,40.45636664,126.65,126.61,0.05701125]
[1766423448570,40.45636664,126.65,126.61,7.16811125]
[1766423448766,8.26,126.67,126.61,0.05701125]
[1766423448970,0.05899488,126.64,126.61,0.05701125]
[1766423449168,8.26,126.67,126.61,0.05701125]
[1766423449368,8.26,126.69,126.63,7.11]
[1766423450176,0.05708062,126.67,126.65,0.05865981]
[1766423451563,8.31708062,126.67,126.61,7.1108]
[1766423451755,8.26,126.67,126.61,7.1108]
[1766423452674,0.04965343,126.65,126.63,0.05140275]
[1766423453069,3.74298146,126.68,126.63,0.05140275]
[1766423453273,8.26,126.69,126.63,0.05140275]
[1766423454066,0.05287488,126.67,126.63,0.05140275]
[1766423456177,8.26,126.71,126.63,0.05140275]
[1766423456384,8.26,126.75,126.63,110.5992]
[1766423456672,10.65510207,126.7,126.61,203.8966]
[1766423457081,2.39510207,126.68,126.61,203.8966]
[1766423457289,2.39510207,126.68,126.63,0.05142392]
[1766423457577,2.39510207,126.68,126.63,7.16142392]
[1766423458268,0.05290557,126.67,126.63,7.16142392]
[1766423459081,0.05290557,126.67,126.63,0.05142392]
[1766423460370,0.05290557,126.67,126.63,7.16132392]
[1766423460776,8.31290557,126.67,126.63,0.05142392]
[1766423460977,10.65510207,126.65,126.56,120.34438226]
[1766423461182,203.8039,126.7,126.55,2.83578943]
[1766423461183,10.65510207,126.63,126.55,2.83578943]
[1766423461475,10.65510207,126.63,126.57,7.113]
[1766423462180,0.05786534,126.61,126.59,0.04997246]
[1766423462378,8.31786534,126.61,126.53,7.1154]
[1766423462577,2.39510207,126.55,126.47,8.54]
[1766423463076,2.39510207,126.53,126.48,8.54]
[1766423463277,2.39510207,126.53,126.47,24.13386826]
[1766423463482,0.00027801,126.52,126.49,8.59420777]
[1766423463779,2.39510207,126.58,126.5,8.54]
[1766423463971,84.78615391,126.6,126.5,8.54]
[1766423464172,84.78615391,126.6,126.51,8.54]
[1766423464386,6.48655101,126.57,126.49,8.54]
[1766423464568,6.42615391,126.57,126.49,8.54]
[1766423465472,0.05218765,126.54,126.52,0.05734384]
[1766423468384,78.36,126.6,126.52,8.49734384]
[1766423468583,78.36,126.6,126.52,8.44]
[1766423469584,0.05607066,126.57,126.55,0.0525483]
[1766423470371,0.05607066,126.57,126.52,8.44]
[1766423471375,0.05607066,126.57,126.53,0.05082778]
[1766423473775,93.3,126.63,126.53,8.49082778]
[1766423473983,93.3,126.63,126.54,8.44]
[1766423474679,0.0500379,126.6,126.57,0.05940822]
[1766423480286,0.0500379,126.6,126.53,8.44]
[1766423480589,6.42615391,126.6,126.49,110.7197]
[1766423480791,6.42615391,126.6,126.5,8.44]
[1766423481092,13.53805391,126.6,126.5,8.44]
[1766423481397,13.53805391,126.6,126.54,0.05397183]
[1766423481398,0.05522779,126.56,126.54,0.05397183]
[1766423482297,7.1111,126.62,126.54,0.05397183]
[1766423482496,7.1111,126.62,126.52,8.44]
[1766423482889,93.3,126.63,126.57,8.44]
[1766423483090,7.1086,126.66,126.57,8.44]
[1766423483296,0.05379994,126.63,126.6,0.05277809]
[1766423484100,0.05379994,126.63,126.6,7.16437809]
[1766423484301,0.05379994,126.63,126.6,0.05277809]
[1766423485595,2.3959484,126.66,126.6,8.49277809]
[1766423485795,93.3,126.67,126.6,8.49277809]
[1766423486197,101.17531654,126.71,126.62,8.44]
[1766423486402,99.71531654,126.71,126.62,8.44]
[1766423486596,93.3,126.71,126.65,0.05890849]
[1766423486899,0.0573431,126.68,126.65,0.05890849]
[1766423490099,0.0573431,126.68,126.61,9.42]
[1766423490303,7.1065,126.7,126.61,9.42]
[1766423490604,110.5414,126.7,126.58,9.42]
[1766423491104,0.05479356,126.65,126.63,0.05111606]
[1766423491302,0.05754357,126.65,126.63,0.05111606]
[1766423493107,210.25381654,126.71,126.64,8.06535445]
[1766423493291,210.25381654,126.71,126.65,5.445e-05]
[1766423493606,210.25381654,126.71,126.6,16.5316]
[1766423494008,0.05055993,126.67,126.64,0.05468685]
[1766423494202,93.3,126.71,126.64,0.05468685]
[1766423494203,93.3,126.71,126.64,9.47468685]
[1766423495207,93.3,126.71,126.64,16.58408685]
[1766423495409,0.05541694,126.69,126.64,9.47468685]
[1766423500204,0.05541694,126.69,126.64,16.58408685]
[1766423500812,0.05541694,126.69,126.64,9.47468685]
[1766423501318,93.3,126.71,126.64,9.47468685]
[1766423501715,13.51971654,126.74,126.66,10.22]
[1766423502419,0.06034147,126.71,126.69,0.05359756]
[1766423502607,0.00034147,126.71,126.69,0.05359756]
[1766423503009,87.31982954,126.75,126.69,0.05359756]
[1766423504216,0.05257015,126.73,126.69,0.05359756]
[1766423504612,0.05257015,126.73,126.69,10.27359756]
[1766423504613,0.00257015,126.73,126.69,10.27359756]
[1766423505118,0.00257015,126.73,126.7,7.1061]
[1766423505319,0.00257015,126.73,126.71,7.59900199]
[1766423505508,0.00257015,126.73,126.72,7.59900199]
[1766423507124,99.65531654,126.79,126.73,10.22]
[1766423507307,7.0997,126.82,126.74,14.70270199]
[1766423507511,7.0997,126.82,126.75,7.59900199]
[1766423507813,7.1002,126.81,126.76,7.59900199]
[1766423508014,0.02783251,126.8,126.77,7.65160938]
[1766423508209,0.02783251,126.8,126.77,0.05260739]
[1766423508409,93.22,126.83,126.77,10.27260739]
[1766423509522,93.22,126.83,126.78,10.22]
[1766423510627,6.41531654,126.87,126.79,10.22]
[1766423510822,99.61531654,126.87,126.82,0.05916508]
[1766423511124,93.2,126.87,126.82,0.05916508]
[1766423511516,93.2,126.87,126.76,10.22]
[1766423511721,6.41531654,126.86,126.77,10.22]
[1766423512115,7.0985,126.84,126.77,10.22]
[1766423512608,0.05558621,126.82,126.79,0.06054993]
[1766423513119,7.0991,126.83,126.79,0.06054993]
[1766423513519,7.0982,126.85,126.79,0.06054993]
[1766423513721,116.82001654,126.86,126.79,0.06054993]
[1766423514423,13.51291654,126.86,126.79,0.06054993]
[1766423514726,6.41531654,126.86,126.79,10.28054993]
[1766423516522,6.41531654,126.86,126.79,0.06054993]
[1766423516818,6.41531654,126.83,126.72,10.22]
[1766423517126,6.41531654,126.8,126.72,10.22]
[1766423517910,0.0529228,126.77,126.75,0.05023169]
[1766423518112,0.05568428,126.77,126.75,0.05023169]
[1766423518320,103.5876969,126.83,126.75,0.05023169]
[1766423518622,214.0180969,126.83,126.72,10.22]
[1766423519319,214.0180969,126.83,126.76,0.05919496]
[1766423519626,7.1002,126.81,126.76,0.05919496]
[1766423519827,214.0180969,126.83,126.76,0.05919496]
[1766423520217,214.0180969,126.83,126.77,7.31480355]
[1766423520416,0.05711175,126.81,126.72,10.22]
[1766423520621,214.0180969,126.83,126.72,10.22]
[1766423521019,110.4378,126.82,126.72,10.22]
[1766423521215,110.4378,126.82,126.7,10.22]
[1766423521216,10.4076969,126.8,126.7,10.22]
[1766423521416,0.05163802,126.76,126.74,0.05970315]
[1766423522020,0.05163802,126.76,126.7,10.22]
[1766423522727,0.00163802,126.76,126.7,10.22]
[1766423523329,0.00163802,126.76,126.72,10.22]
[1766423523627,110.4487,126.81,126.73,0.05071551]
[1766423523833,110.4487,126.81,126.72,10.22]
[1766423524431,7.1018,126.78,126.72,10.22]
[1766423524618,110.4487,126.81,126.74,0.05322641]
[1766423525518,10.4076969,126.82,126.74,10.27322641]
[1766423525718,10.4076969,126.82,126.77,0.0516163]
[1766423526628,7.1006,126.8,126.77,0.0516163]
[1766423527015,110.4351,126.83,126.77,0.0516163]
[1766423527216,93.16,126.84,126.77,10.3116163]
[1766423528030,100.2587,126.84,126.77,10.3116163]
[1766423528227,203.5822,126.84,126.77,0.0516163]
[1766423528527,7.0991,126.83,126.77,0.0516163]
[1766423528729,93.16,126.84,126.77,0.0516163]
[1766423529129,10.4076969,126.82,126.71,17.3651]
[1766423529424,110.4493,126.81,126.71,10.26]
[1766423529630,203.6148,126.8,126.71,10.26]
[1766423530029,7.1018,126.78,126.71,10.26]
[1766423530237,0.05797667,126.76,126.73,0.05479617]
[1766423534631,100.261,126.8,126.73,10.31479617]
[1766423536433,100.261,126.8,126.73,17.41919617]
[1766423536434,93.16,126.8,126.73,17.41919617]
[1766423538733,93.16,126.8,126.74,10.26]
[1766423538937,93.16,126.8,126.76,0.05654032]
[1766423541420,10.4076969,126.85,126.76,10.31654032]
[1766423541626,93.16,126.84,126.79,0.05613204]
[1766423541939,100.2584,126.84,126.79,0.05613204]
[1766423543535,93.16,126.84,126.79,0.05613204]
[1766423543835,93.16,126.84,126.79,10.31613204]
[1766423545239,93.16,126.84,126.79,17.41693204]
[1766423545434,93.16,126.84,126.79,10.31613204]
[1766423545831,10.4076969,126.88,126.79,10.31613204]
[1766423546037,10.4076969,126.88,126.76,110.4855]
[1766423546038,93.16,126.88,126.82,0.06019346]
[1766423546234,93.16,126.88,126.82,10.32019346]
[1766423546436,93.16,126.88,126.82,0.06019346]
[1766423547135,93.16,126.88,126.82,10.32019346]
[1766423547836,93.16,126.88,126.82,0.06019346]
[1766423550141,103.5676969,126.88,126.76,10.26]
[1766423550940,7.0973,126.86,126.77,10.26]
[1766423551143,0.0543172,126.83,126.81,0.0041261]
[1766423551343,93.14,126.84,126.77,10.26]
[1766423552439,0.05256031,126.82,126.79,0.05168308]
[1766423552741,0.05256031,126.82,126.74,17.3636]